Cogmind - Beta 9.6 @@@ ROGUE MODE // 2020.05.01 @ 22:49:28 Player: mr_sack Result: Destroyed by G-34 Mercenary with Small Laser Performance ------------- Evolutions (1) 500 Regions Visited (3) 600 Robots Destroyed (68) 340 Value Destroyed (1631) 1631 Prototype IDs (3) 60 Alien Tech Used (0) 0 Bonus (100) 100 TOTAL SCORE: 3231 Bonus ------- High Alert Combat Kills 100 Cogmind --------- Core Integrity 0/400 Matter 201/300 Energy 280/280 System Corruption 13% Temperature Cool (126) Movement Walking (120) Location -9/Storage Parts ------- > --- POWER (1) -------- Cooled Ion Engine > --- PROPULSION (3) --- Light Treads Aluminum Leg Aluminum Leg > --- UTILITY (2) ------ Visual Processing Unit > --- WEAPON (3) ------- Advanced Beam Cannon Assault Rifle Heavy Assault Rifle > --- INVENTORY (4) ---- Improved Ion Engine Aluminum Leg Signal Interpreter Hacking Suite Peak State ------------ > --- POWER ------------ Cooled Ion Engine > --- PROPULSION ------- Light Treads Aluminum Leg Aluminum Leg > --- UTILITY ---------- Visual Processing Unit Drone Bay > --- WEAPON ----------- Advanced Beam Cannon Assault Rifle Heavy Assault Rifle > --- INVENTORY -------- Improved Ion Engine Aluminum Leg Heat Sink Hacking Suite [Rating: 19] Favorites ----------- Power Ion Engine Engine Ion Engine Propulsion Aluminum Leg Treads Light Treads Leg Aluminum Leg Hover Unit Hover Unit Utility Small Storage Unit Device Sensor Array Storage Small Storage Unit Processor Visual Processing Unit Weapon Advanced Beam Cannon Energy Gun EM Pulse Gun Energy Cannon Advanced Beam Cannon Ballistic Gun Assault Rifle Launcher Rocket Launcher Build | -11 -10 -9 -9 ------- Run | Scr Mat Mat Sto Slots Evolved 2 | . . 2 . Power . | . . . . Propulsion 1 | . . 1 . Utility . | . . . . Weapon 1 | . . 1 . Parts Attached 71 | 9 13 40 9 Power 11 | 1 2 8 . Engine 11 | 1 2 8 . Core . | . . . . Reactor . | . . . . Propulsion 17 | 2 8 7 . Treads 1 | . . 1 . Leg 12 | 2 4 6 . Wheel . | . . . . Hover 4 | . 4 . . Flight . | . . . . Utility 17 | 3 1 4 9 Device 12 | 1 1 1 9 Storage 3 | 1 . 2 . Processor 2 | 1 . 1 . Hackware . | . . . . Protection . | . . . . Artifact . | . . . . Weapon 26 | 3 2 21 . Energy Gun 5 | 2 . 3 . Energy Cannon 9 | . . 9 . Ballistic Gun 4 | 1 . 3 . Ballistic Cannon . | . . . . Launcher 8 | . 2 6 . Special Weapon . | . . . . Impact Weapon . | . . . . Slashing Weapon . | . . . . Piercing Weapon . | . . . . Special Melee Weapon . | . . . . Unidentified Prototypes 3 | . . 3 . Parts Lost 20 | . 4 16 . Power 5 | . 2 3 . Propulsion 6 | . 2 4 . Utility 3 | . . 3 . Weapon 6 | . . 6 . Highest Loss Streak 13 | . 2 13 . Average Slot Usage (%) 94 | . 96 91 97 Engine 11 | . 13 10 11 Treads 3 | . . 2 11 Leg 21 | . 10 27 22 Hover 3 | . 14 . . Device 7 | . 14 4 8 Storage 8 | . 14 9 . Processor 6 | . . 7 11 Energy Gun 5 | . 14 2 . Energy Cannon 9 | . . 12 11 Ballistic Gun 7 | . 8 3 22 Launcher 8 | . 5 11 . Naked Turns . | . . . . Heaviest Build 27 | 13 16 27 23 Greatest Support 30 | 20 20 30 20 Greatest Overweight (x) 4 | 3 4 4 1 Average Overweight (x) . | . . . . Largest Inventory Capacity 8 | 6 6 8 4 Average Capacity 5 | 5 6 6 4 Most Carried 8 | 2 6 8 4 Average Carried 4 | 1 5 5 3 Final Capacity 6 | 6 6 4 4 Final Carried 6 | 2 6 4 4 Class Distribution -------------------- 48% | Mutant 26% | Scavenger-Skirmisher 15% | Skirmisher 9% | Scavenger-Mutant Dominant Class ---------------- Mutant | -10/Materials Mutant | -9/Materials Scavenger-Skirmisher | -9/Storage Resources | -11 -10 -9 -9 ----------- Run | Scr Mat Mat Sto Matter Collected 1478 | 298 233 805 142 Remotely . | . . . . Salvage Created 2087 | 127 657 1039 264 Parts 121 | 12 40 59 10 Haulers Intercepted 5 | . 1 4 . Recyclers Shooed 4 | . 2 . 2 Parts Field Recycled . | . . . . Retrieved Matter . | . . . . Parts Self-Destructed . | . . . . Prevented . | . . . . Kills | -11 -10 -9 -9 ------- Run | Scr Mat Mat Sto Combat Hostiles Destroyed 40 | . 12 26 2 Guns 8 | . 5 2 1 Cannons 16 | . . 15 1 AOE 16 | . 7 9 . Classes Destroyed 11 | 2 6 3 . Worker 8 | . 2 6 . Builder 3 | . . 3 . Tunneler 2 | 2 . . . Hauler 5 | . 1 4 . Recycler 6 | 1 3 . 2 Operator 2 | . 2 . . Watcher 2 | . 1 1 . Swarmer 7 | . 3 4 . Grunt 25 | . 9 16 . Duelist 1 | . . 1 . Sentry 7 | . . 5 2 Best Kill Streak 8 | 3 8 7 2 Combat Bots Only 6 | . 5 6 1 Max Kills in Single Turn 4 | 1 2 4 1 Gunslinging . | . . . . Exploded 2 | . 2 2 . Melee . | . . . . Uniques/NPCs Destroyed . | . . . . Combat | -11 -10 -9 -9 -------- Run | Scr Mat Mat Sto Damage Taken 2698 | . 543 1827 328 Core 637 | . 231 352 54 Absorbed by Shields . | . . . . Core Remaining (%) 53 | 100 7 . . Volleys Fired 133 | 8 39 74 12 Largest 3 | 2 2 3 3 Hottest 204 | 60 73 204 111 Shots Fired 276 | 16 75 150 35 Gun 140 | 16 61 39 24 Cannon 89 | . . 78 11 Launcher 47 | . 14 33 . Special . | . . . . Kinetic 80 | 8 22 26 24 Thermal 96 | . . 85 11 Explosive 47 | . 14 33 . Electromagnetic 53 | 8 39 6 . Robot Hit Streak 12 | 4 7 6 12 Robot Miss Streak 4 | 2 3 4 2 Penetration Max . | . . . . Secondary Targets . | . . . . Shots Hit Robots 134 | 9 28 74 23 Core Hits 104 | 4 30 62 8 Critical Hits 8 | . . 8 . Critical Kills 3 | . . 3 . Critical Parts Destroyed 4 | . . 4 . Melee Attacks . | . . . . Impact . | . . . . Slashing . | . . . . Piercing . | . . . . Sneak Attacks . | . . . . Combat Hostiles . | . . . . Follow-up Attacks . | . . . . Damage Inflicted 4488 | 77 1089 2924 398 Guns 1044 | 77 417 316 234 Cannons 1070 | . . 906 164 Explosions 2374 | . 672 1702 . Melee . | . . . . Ramming . | . . . . Kinetic 507 | 24 56 193 234 Thermal 1292 | . 89 1039 164 Explosive 2238 | . 583 1655 . Electromagnetic 451 | 53 361 37 . Impact . | . . . . Slashing . | . . . . Piercing . | . . . . Highest Corruption 13 | . 4 11 13 Average Corruption 10 | . 4 11 11 Corruption Purged . | . . . . Effects 48 | . 1 25 22 Message Errors 6 | . . 4 2 Matter Fused 9 | . 1 2 6 Heat Flow Errors 3 | . . 3 . Parts Rejected 2 | . . . 2 Data Loss (minor) 4 | . . 2 2 Data Loss (major) 1 | . . . 1 Misdirections 7 | . . 1 6 Targeting Errors 12 | . . 10 2 Weapon Failures 4 | . . 3 1 Overload Shots . | . . . . Overflow Damage 116 | . 9 107 . Projectiles 10 | . . 10 . Explosions 106 | . 9 97 . Melee . | . . . . Knockbacks . | . . . . Impact . | . . . . Kinetic . | . . . . Secondary . | . . . . Self-Inflicted Damage 229 | . 60 169 . Shots 6 | . 2 4 . Rammed . | . . . . Targets Rammed . | . . . . Kicked . | . . . . Crushed . | . . . . Highest Temperature 502 | 40 133 502 123 Average Temperature 95 | 21 30 130 42 Received Heat Transfer 867 | . 90 624 153 Effects 7 | . . 7 . Shutdowns 2 | . . 2 . Interference 3 | . . 3 . Damage (minor) 2 | . . 2 . Siege Activations . | . . . . Robots Corrupted . | . . . . Combat Hostiles . | . . . . Parts Fried . | . . . . Impact Corruptions . | . . . . Robots Melted . | . . . . Combat Hostiles . | . . . . Parts Melted 3 | . . 2 1 Heat Transferred 2196 | . . 1900 296 Parts Sabotaged . | . . . . Parts Stolen . | . . . . Parts Stripped . | . . . . Power Chain Reactions 3 | . 2 1 . Missiles Intercepted . | . . . . Alert | -11 -10 -9 -9 ------- Run | Scr Mat Mat Sto Peak Influence 583 | 15 334 583 267 Average Influence 251 | 6 150 348 189 Maximum Alert Level 2 | . 1 2 1 Low Security (%) 41 | 100 75 18 43 Level 1 32 | . 24 32 56 Level 2 25 | . . 49 . Level 3 . | . . . . Level 4 . | . . . . Level 5 . | . . . . High Security . | . . . . Max Security . | . . . . Squads Dispatched 7 | . 4 1 2 Investigation 1 | . 1 . . Extermination . | . . . . Reinforcement 5 | . 3 . 2 Assault 1 | . . 1 . Garrison . | . . . . Intercept . | . . . . Construction Impeded . | . . . . Haulers Reinforced . | . . . . Stealth | -11 -10 -9 -9 --------- Run | Scr Mat Mat Sto Distress Signals 4 | . 1 . 3 Communications Jammed . | . . . . Distress Signals . | . . . . Times Spotted 52 | . 14 31 7 Peak Tracking Total 6 | . 3 5 6 Tactical Retreats 3 | . . 3 . Traps | -11 -10 -9 -9 ------- Run | Scr Mat Mat Sto Traps Triggered 1 | . . . 1 Indirectly . | . . . . Trap Hack Attempts . | . . . . Triggered . | . . . . Disarmed . | . . . . Reprogrammed . | . . . . Reused . | . . . . Traps Extracted . | . . . . Installed . | . . . . Triggered . | . . . . Machines | -11 -10 -9 -9 ---------- Run | Scr Mat Mat Sto Machines Disabled 15 | . 4 11 . Max in Single Turn 3 | . 2 3 . Machines Sabotaged . | . . . . Garrisons Compromised . | . . . . Overloaded Fab Kills . | . . . . Fab Network Shutdowns . | . . . . Hacking | -11 -10 -9 -9 --------- Run | Scr Mat Mat Sto Machines Accessed 8 | . 2 2 4 Terminals 5 | . 1 1 3 Fabricators . | . . . . Repair Stations 1 | . . 1 . Recycling Units 2 | . 1 . 1 Scanalyzers . | . . . . Garrison Access . | . . . . Total Hacks 26 | . 7 10 9 Successful 18 | . 5 9 4 Failed 8 | . 2 1 5 Catastrophic 2 | . . 1 1 Database Lockouts . | . . . . Manual 8 | . 4 1 3 Terminals 11 | . 4 2 5 Fabricators . | . . . . Repair Stations 8 | . . 8 . Recycling Units 7 | . 3 . 4 Scanalyzers . | . . . . Garrison Access . | . . . . Terminal Hacks 5 | . 3 1 1 Robot Analysis 1 | . 1 . . Open Door 1 | . . . 1 Branch Access Points 1 | . 1 . . Zone Layout 2 | . 1 1 . Fabricator Hacks . | . . . . Repair Station Hacks 8 | . . 8 . Scan Component 4 | . . 4 . Repair 4 | . . 4 . Recycling Unit Hacks 4 | . 1 . 3 Process 1 | . . . 1 Report Inventory 2 | . 1 . 1 Retrieve Matter 1 | . . . 1 Scanalyzer . | . . . . Garrison Access Hacks . | . . . . Unauthorized Hacks 1 | . 1 . . Terminals . | . . . . Fabricators . | . . . . Repair Stations . | . . . . Recycling Units 1 | . 1 . . Mask 1 | . 1 . . Scanalyzers . | . . . . Garrison Access . | . . . . Data Cores Recovered . | . . . . Used . | . . . . Hacking Detections 4 | . 1 1 2 Full Trace Events 1 | . 1 . . Feedback Events . | . . . . Feedback Blocked . | . . . . Robot Schematics Acquired . | . . . . Robots Built . | . . . . Matter . | . . . . Time . | . . . . Total Robot Build Rating . | . . . . Part Schematics Acquired . | . . . . Parts Built . | . . . . Matter . | . . . . Time . | . . . . Total Part Build Rating . | . . . . Parts Repaired 4 | . . 4 . Time 110 | . . 110 . Parts Recycled . | . . . . Recycled Matter 18 | . . . 18 Retrieved Matter 18 | . . . 18 Retrieved Components . | . . . . Parts Scanalyzed . | . . . . Part Schematics Acquired . | . . . . Parts Damaged . | . . . . Bothacking | -11 -10 -9 -9 ------------ Run | Scr Mat Mat Sto Used RIF Installer . | . . . . Robots Hacked . | . . . . Non-combat . | . . . . Combat . | . . . . Robot Hacks Applied . | . . . . Relay Couplers Released . | . . . . Robots Rewired . | . . . . Allies Hacked . | . . . . Hacks Repelled . | . . . . Allies | -11 -10 -9 -9 -------- Run | Scr Mat Mat Sto Total Allies . | . . . . Largest Group . | . . . . Highest-Rated Group . | . . . . Highest-Rated Ally . | . . . . Total Orders 8 | . . . 8 EXPLORE 8 | . . . 8 Ally Attacks . | . . . . Total Damage . | . . . . Kills . | . . . . Allies Corrupted . | . . . . Allies Melted . | . . . . Intel | -11 -10 -9 -9 ------- Run | Scr Mat Mat Sto Robot Analysis Total 1 | . 1 . . Derelict Logs Recovered . | . . . . Drone Launches 16 | . . . 16 Drone Recoveries . | . . . . Exploration | -11 -10 -9 -9 ------------- Run | Scr Mat Mat Sto Turns Passed 2037 | 123 492 1061 361 Spaces Moved 954 | 72 266 436 180 Core 20 | 11 5 4 . Treads . | . . . . Legs 789 | 61 116 432 180 Wheels . | . . . . Hover 145 | . 145 . . Flight . | . . . . Fastest Speed 50 | 50 56 100 120 Average Speed 125 | 119 125 126 124 Slowest Speed 250 | 200 250 250 150 Overloaded Moves . | . . . . Propulsion Burnouts . | . . . . Robots Hopped . | . . . . Cave-ins Triggered 2 | . 1 1 . Exploration Rate (%) 28 | 4 42 28 41 Regions Visited 3 Branch Regions 1 Pre-discovered Areas . | . . . . Known Exits Taken . | . . . . Unknown Exits Taken 3 | 1 1 1 . Scrap Searched . | . . . . Spaces Dug 10 | . 10 . . Terrain Destroyed 521 | . 155 366 . Melee . | . . . . Projectile . | . . . . AOE 521 | . 155 366 . Actions | -11 -10 -9 -9 --------- Run | Scr Mat Mat Sto Total 1539 | 90 353 805 291 Wait 329 | . 17 232 80 Move 950 | 71 264 435 180 Hop . | . . . . Pick Up 22 | 1 10 10 1 Fast Attach 37 | 8 4 16 9 Attach 12 | . 4 8 . Detach 6 | 1 3 2 . Swap 22 | 1 5 16 . Drop 27 | . 6 12 9 Fire 133 | 8 39 74 12 Melee . | . . . . Ram . | . . . . Kick . | . . . . Crush . | . . . . Escape Stasis 1 | . 1 . . Rewire . | . . . . Trap . | . . . . Miscellaneous . | . . . . Route ------- -11/Scrapyard -10/Materials (discovered 3 exits: *Mat x2 / *Min) -9/Materials (discovered 2 exits: [*Min] / *Sto) -9/Storage History --------- Turn | Location | Event 27 | -11/Scrapyard | Discovered new exit (range 15) 124 | -11/Scrapyard | Entered Materials 267 | -10/Materials | Discovered new exit (range 13) 267 | -10/Materials | Identified exit to Mines 300 | -10/Materials | Build established: Mutant 442 | -10/Materials | Discovered new exit (range 16) 522 | -10/Materials | Crushed by falling debris 523 | -10/Materials | Core integrity fell below 50% 523 | -10/Materials | Core integrity fell below 20% 616 | -10/Materials | Entered another Materials area 616 | -9/Materials | Evolved 2 slots: Propulsion x1, Weapon x1 659 | -9/Materials | Repaired Aluminum Leg 686 | -9/Materials | Repaired EM Pulse Gun 714 | -9/Materials | Repaired Hover Unit 747 | -9/Materials | Repaired Rocket Launcher 770 | -9/Materials | Discovered new exit (range 15) 1145 | -9/Materials | Discovered new exit (range 14) 1416 | -9/Materials | First assault squad dispatched 1427 | -9/Materials | Core integrity fell below 50% 1436 | -9/Materials | Crushed by falling debris 1436 | -9/Materials | System corruption reached 10% 1565 | -9/Materials | Core integrity fell below 20% 1566 | -9/Materials | Lost 13 parts (2p3n2u6w) 1677 | -9/Materials | Entered Storage 1906 | -9/Storage | Build established: Scavenger-Skirmisher 2038 | -9/Storage | Destroyed by G-34 Mercenary with Small Laser Last Messages --------------- 01958_ System corrupted: Component data lost. 01964_ R-06 Scavenger destroyed. 01968_ R-06 Scavenger collects Visual Processing Unit. 01969_ Acquired Sensor Array. 01971_ R-06 Scavenger collects Com. Wheel. 01972_ Acquired 73 matter. 01973_ System corrupted: Substantial component data lost. 01978_ Dropped Heat Sink. 01979_ Acquired Signal Interpreter. 01986_ Triggered Shock Trap. 01986_ The floor emits a surge of raw power. 01986_ System corrupted (+2). 01989_ U-05 Engineer lays Concrete. 01991_ System corrupted: Matter fused (-6). 02002_ K-01 Serf collects debris. 02016_ System corrupted: Sensor Array rejected. 02019_ Heat Sink melted. 02019_ Y-45 Defender destroyed. 02036_ System corrupted: Adv. Beam Cannon failed to cycle. 02036_ System corrupted: Assault Rifle targeting data glitched. Map ----- +----------------------------------------------------+ | | | | | | | | | | | | | | | | | ?????????????????????????????????????????????????? | | ?????????????????????????????????????????????????? | | ???????????????????????????##########????????????? | | ???????????????????????????# #?????#####??? | | ???????????????????????????# """#?????#"""#??? | | ?????????????????######????# """#######"Y"#### | | ??????????"####### #????# """# % | | ??????????" ###### + % | | ??????????" + """# % | | ?????????????##### ###### """#####+######+# | | ?????????????????## ##????# """## # | | ??#####T###???????# #?????# ## # "" | | ?# ]!! ######?# #?????###### #### # "T | | ?# ]! + #?# %#??????????###??# # | | ?# !! #### ### %##????????####### # "" | | ?# ???# ## [ ########## ## # "" | | ?##" ""# #????# %%!% Y g g ## # "" | | ??#"R"?########### = g @ g ! T + # | | ???"????# # % ########## ## #### | | ????????#[ """ # ##????############+#######??? | | ????????# """ #% #######T##"T"##### ##???????? | | ????????# "" """ # % #####???? | | ????????# "" + % % % # ##??? | | ????????# "T [/ #%%% % + T#??? | | ????????# "" [/ # #+#+###############^^ ### ##??? | | ????????# "" / # # %! #??????????# ##! #??? | | ????????# # # #??????????# ##!= #??? | | ????????### ###### # % #??????????# ## #??? | | ??????????#??????# # #??????????# ## #??? | | ?????????????????# # #??????????# ######??? | | ?????????????????# + #??????????# #???????? | | ?????????????????# # !#??????????#####???????? | | ?????????????????# # #??????????????????????? | | ?????????????????# # #??????????????????????? | | ?????????????????? #] / #??????????????????????? | | ?????????????????? # |#??????????????????????? | | ?????????????????? +* +??????????????????????? | | ?????????????????? # #??????????????????????? | | ?????????????????? ########??????????????????????? | | ?????????????????? ??????????????????????????????? | | ??????????????????+??????????????????????????????? | | ?????????????????????????????????????????????????? | +----------------------------------------------------+ Best States ------------- Heat Dissipation 38 Energy Generation 14 Energy Capacity 280 Matter Stores 300 Matter Capacity 350 Sight Range 18 Robot Scan Range 10 Terrain Scan Range 16 Terrain Scan Density 60 Evasion (%) 40 Item Schematics ----------------- None Robot Schematics ------------------ None Fabricated ------------ Nothing Alien Tech Used ----------------- None Achievements -------------- Dramatic Entrance Let's See Who's Tougher Release The Drones! True Hacker Challenges ------------ None Game ------ Seed AngularFocalField Manual? 0 Play Time 00:38:59 Cumulative 41.4 hours Start 2020.05.01 @ 22:06:50 End 2020.05.01 @ 22:49:28 Sessions 3 Manual Loads 0 Difficulty Rogue Special Mode None Game No. 31 Rogue 26 Adventurer 5 Explorer 0 Win Type - Total 0 Types 0/0/0/0/0/0/0 Lore% 30 Gallery% 32 Achievement% 24 Wizard Run 0 Options --------- ASCII 0 Keyboard 1 Movement Arrows Keybinds 0 Fullscreen 1 Font 18/SmallcapsGlow Map View 76x50 Tactical HUD 1 Map Filters NONE Filters NONE Steam 1 RUN: 74c71a36-ef0c-4e7d-9e92-518f44371955